bitfinex-derivatives/quotes_ETHF0:USTF0_20210407
["timestamp","ask_amount","ask_price","bid_price","bid_amount"]
[1617791489326,79.35745,2043.7,2043.6,5.92]
[1617791490230,2.90695,2043.7,2043.6,5.92]
[1617791491330,2.90695,2043.7,2043.6,7.8007]
[1617791492545,2.90695,2043.7,2043.6,5.92]
[1617791493133,2.90695,2043.7,2043.5,70.72485]
[1617791493635,2.90695,2043.7,2043.6,6.14]
[1617791493934,2.90695,2043.7,2042.5,32.0]
[1617791494133,67.7752,2043.4,2042.5,32.0]
[1617791494333,69.8998,2043.4,2042.5,2.0]
[1617791494534,69.8998,2043.4,2042.4,32.0]
[1617791494734,69.8998,2043.4,2042.9,2.90695]
[1617791495135,69.8998,2043.4,2043.0,5.91]
[1617791496235,69.8998,2043.4,2042.3,60.6057]
[1617791496638,69.8998,2043.4,2042.4,2.90695]
[1617791497036,69.8998,2043.4,2042.4,8.99695]
[1617791498744,2.90695,2042.5,2042.4,8.99695]
[1617791499139,2.90695,2042.5,2042.4,2.90695]
[1617791499344,56.8323,2042.4,2041.3,61.131]
[1617791499540,56.8323,2042.4,2041.4,2.0]
[1617791500038,56.8323,2042.4,2041.5,5.92]
[1617791500241,2.90695,2042.5,2041.6,2.0]
[1617791500439,2.90695,2042.5,2042.1,69.7673]
[1617791500641,80.1535,2043.1,2042.3,2.90695]
[1617791501041,80.1535,2043.1,2042.4,5.92]
[1617791502643,2.90695,2042.5,2042.4,5.92]
[1617791507049,2.90695,2042.5,2042.1,69.7673]
[1617791507854,2.90695,2042.5,2042.2,6.12]
[1617791511656,2.90695,2042.5,2042.0,2.90695]
[1617791511953,75.9901,2042.1,2040.5,69.0922]
[1617791512154,2.3195,2042.1,2040.7,2.0]
[1617791512354,71.0471,2041.3,2040.7,2.0]
[1617791512555,74.0345,2041.3,2040.8,6.15]
[1617791512855,74.0345,2041.3,2041.2,2.90695]
[1617791513260,74.0345,2041.3,2041.2,8.80695]
[1617791514756,5.89435,2041.3,2041.2,8.80695]
[1617791514955,64.7336,2042.0,2041.3,73.6508]
[1617791515156,2.0775,2043.3,2041.4,30.0]
[1617791515359,64.7115,2042.9,2041.8,73.6255]
[1617791515561,30.0,2043.9,2041.8,2.5167]
[1617791515760,75.6564,2042.2,2041.9,5.9]
[1617791516662,75.6564,2042.2,2041.2,2.90695]
[1617791516860,2.90695,2041.3,2041.2,2.90695]
[1617791517061,5.68935,2041.3,2041.2,2.90695]
[1617791517360,69.27315,2041.3,2041.2,8.96695]
[1617791517560,66.3662,2041.3,2041.2,8.96695]
[1617791518861,69.27315,2041.3,2041.2,8.96695]
[1617791520561,5.68935,2041.3,2041.2,8.96695]
[1617791520790,78.5476,2042.1,2041.2,78.08775]
[1617791520991,0.9849,2044.1,2041.8,2.90695]
[1617791521162,78.5245,2042.7,2041.8,2.90695]
[1617791521462,78.5245,2042.7,2041.9,5.96]
[1617791522464,78.5245,2042.7,2041.6,69.1005]
[1617791522864,78.5245,2042.7,2042.1,2.90695]
[1617791523464,78.5245,2042.7,2041.6,69.1005]
[1617791524165,0.9889,2042.9,2041.7,6.04]
[1617791524472,0.9889,2042.9,2041.1,2.0]
[1617791524473,68.8671,2041.9,2041.1,2.0]
[1617791524665,70.8084,2041.9,2041.1,2.0]
[1617791524968,70.8084,2041.9,2041.3,2.90695]
[1617791525364,70.8084,2041.9,2041.4,6.13]
[1617791525966,68.8671,2041.9,2041.4,6.13]
[1617791526977,68.8671,2041.9,2041.7,2.90695]
[1617791527379,4.0484,2043.4,2041.8,5.92]
[1617791527672,69.9849,2043.0,2041.8,79.3752]
[1617791528988,69.9849,2043.0,2042.4,2.90695]
[1617791529270,69.9849,2043.0,2042.4,5.56645]
[1617791529571,69.9849,2043.0,2042.5,5.96]
[1617791530871,2.0,2044.4,2042.9,2.90695]
[1617791531070,55.3152,2043.9,2042.9,5.07415]
[1617791531370,55.3152,2043.9,2043.0,6.1]
[1617791532870,2.90695,2043.1,2043.0,6.1]
[1617791534876,5.24045,2043.1,2043.0,6.1]
[1617791535082,57.0159,2043.0,2042.4,2.90695]
[1617791535676,5.24045,2043.1,2041.8,2.0]
[1617791535882,81.5202,2042.5,2041.4,70.0047]
[1617791536092,84.3221,2042.5,2041.5,2.0]
[1617791536280,84.3221,2042.5,2041.4,70.0047]
[1617791536479,84.3221,2042.5,2041.5,6.01]
[1617791536879,84.3221,2042.5,2042.2,2.90695]
[1617791537084,81.5202,2042.5,2042.2,2.90695]
[1617791537280,2.0747,2044.1,2042.3,6.02]
[1617791537480,71.2966,2043.1,2042.3,9.1107]
[1617791538995,71.2966,2043.1,2042.6,2.90695]
[1617791539387,71.2966,2043.1,2042.7,6.05]
[1617791540386,71.2966,2043.1,2042.2,6.12]
[1617791540589,2.4404,2043.1,2042.2,6.12]
[1617791540787,57.4291,2042.5,2042.2,6.12]
[1617791540988,2.90695,2042.3,2042.2,6.12]
[1617791541188,2.90695,2042.3,2041.6,8.98695]
[1617791541490,2.90695,2042.3,2042.2,3.03]
[1617791541997,2.90695,2042.3,2041.7,6.13]
[1617791542993,2.90695,2041.8,2041.7,6.13]
[1617791543994,2.90695,2041.8,2041.7,36.13]
[1617791545326,13.7513,2044.1,2041.7,36.13]
[1617791545512,0.97953207,2044.4,2041.7,36.13]
[1617791545513,69.3074,2043.6,2041.9,30.0]
[1617791545896,69.3074,2043.6,2042.0,6.12]
[1617791546099,69.3074,2043.6,2042.0,36.12]
[1617791546501,69.3074,2043.6,2042.0,30.0]
[1617791546804,69.3074,2043.6,2042.1,6.06]
[1617791547005,69.3074,2043.6,2042.7,2.90695]
[1617791547404,69.3074,2043.6,2042.8,6.02]
[1617791548103,69.3074,2043.6,2042.6,2.4022]
[1617791548104,30.0,2043.6,2042.6,2.4022]
[1617791548303,30.0,2043.6,2042.6,2.1349]
[1617791548504,30.0,2043.6,2042.6,1.9109]
[1617791548704,30.0,2043.0,2042.6,1.9109]
[1617791548904,32.0,2042.9,2042.6,1.9109]
[1617791549109,2.90695,2042.7,2041.6,56.3704]
[1617791549306,4.90695,2042.7,2041.4,2.90695]
[1617791549505,68.5456,2042.2,2041.4,2.90695]
[1617791549705,71.3855,2042.2,2041.4,2.90695]
[1617791550106,71.3855,2042.2,2041.5,5.99]
[1617791550406,2.8399,2042.2,2041.5,5.99]
[1617791550607,2.8399,2042.2,2040.0,3.571]
[1617791550608,64.6377,2041.5,2040.0,1.0]
[1617791550807,2.9291,2041.5,2040.0,1.0]
[1617791551008,74.33295,2040.5,2040.0,1.0]
[1617791551207,76.71885,2040.5,2040.0,1.0]
[1617791551408,5.29285,2040.5,2040.1,6.01]
[1617791551608,5.29285,2040.5,2040.3,73.5659]
[1617791551808,2.3859,2040.5,2040.3,103.5659]
[1617791552009,2.3859,2040.5,2040.4,6.17]
[1617791552309,2.9291,2041.5,2040.4,6.17]
[1617791552909,71.3351,2041.7,2040.4,6.17]
[1617791553111,71.3351,2041.7,2040.5,2.90695]
[1617791553512,71.3351,2041.7,2040.6,6.14]
[1617791553912,30.0,2041.6,2040.0,1.0]
[1617791554113,69.3909,2040.5,2040.0,1.0]
[1617791554414,72.172,2040.5,2040.0,1.0]
[1617791554618,72.172,2040.5,2040.1,6.09]
[1617791554914,72.172,2040.5,2040.0,1.0]
[1617791555114,2.90695,2040.2,2040.0,1.0]
[1617791559522,2.90695,2040.2,2040.1,6.06]
[1617791563427,2.90695,2040.2,2040.0,1.0]
[1617791565530,63.4185,2040.1,2040.0,1.0]
[1617791566332,63.4185,2040.1,2040.0,7.09]
[1617791567131,63.4185,2040.1,2040.0,9.99695]
[1617791567432,2.90695,2040.2,2040.0,9.99695]
[1617791567734,2.90695,2040.2,2040.0,13.00595]
[1617791568137,2.90695,2040.2,2040.1,2.0]
[1617791568535,2.90695,2040.2,2040.1,8.15]
[1617791569137,74.0532,2040.8,2040.1,38.15]
[1617791570540,74.0532,2040.8,2040.1,8.15]
[1617791570740,74.0532,2040.8,2040.1,6.15]
[1617791571243,2.90695,2040.2,2040.1,6.15]
[1617791571842,81.7926,2040.1,2040.0,1.0]
[1617791572045,67.3784,2039.1,2038.8,2.0]
[1617791572344,70.3713,2039.1,2038.8,2.0]
[1617791572544,70.3713,2039.1,2037.4,68.5673]
[1617791572744,70.3713,2039.1,2038.9,5.94]
[1617791573244,70.3713,2039.1,2039.0,2.90695]
[1617791573444,70.3713,2039.1,2039.0,9.05695]
[1617791573645,70.3713,2039.1,2039.0,6.15]
[1617791575046,67.3784,2039.1,2039.0,6.15]
[1617791575248,67.3784,2039.1,2039.0,9.05695]
[1617791576149,67.3784,2039.1,2039.0,39.05695]
[1617791577753,67.3784,2039.1,2039.0,6.15]
[1617791578549,70.3477,2039.1,2038.4,6.06]
[1617791578756,70.3477,2039.1,2038.5,2.0]
[1617791579151,70.3477,2039.1,2038.8,2.90695]
[1617791579450,2.9693,2039.1,2038.8,2.90695]
[1617791579650,2.9693,2039.1,2038.9,6.08]
[1617791579852,65.4596,2038.9,2038.8,2.90695]
[1617791580251,65.4596,2038.9,2038.8,8.78695]
[1617791582355,2.90695,2039.2,2038.8,8.78695]
[1617791582558,2.90695,2039.2,2038.8,38.78695]
[1617791582754,70.0797,2039.9,2038.9,2.0]
[1617791583056,71.055,2039.9,2039.0,30.0]
[1617791583256,70.0797,2039.9,2039.5,2.90695]
[1617791583554,30.0,2041.2,2039.5,2.90695]
[1617791583754,66.5903,2040.3,2039.6,6.14]
[1617791584260,83.8638,2041.4,2039.6,6.14]
[1617791584261,0.9867,2041.3,2039.6,6.14]
[1617791584568,56.8187,2040.2,2039.6,6.14]
[1617791584854,30.0,2041.6,2039.6,6.14]
[1617791584855,57.752,2040.0,2039.6,6.14]
[1617791585256,57.752,2040.0,2039.9,2.90695]
[1617791585656,57.752,2040.0,2039.9,8.91695]
[1617791585857,57.752,2040.0,2039.9,6.01]
[1617791586158,57.752,2040.0,2038.8,5.98]
[1617791586357,57.752,2040.0,2039.4,5.91]
[1617791586560,57.752,2040.0,2038.9,30.0]
[1617791586758,57.752,2040.0,2039.0,7.88]
[1617791586960,57.752,2040.0,2039.5,5.91]
[1617791587159,57.752,2040.0,2039.1,30.0]
[1617791587360,57.752,2040.0,2039.2,6.14]
[1617791587561,57.752,2040.0,2039.6,6.09]
[1617791587760,57.752,2040.0,2039.6,8.1341]
[1617791587960,57.752,2040.0,2039.7,2.0]
[1617791588161,57.752,2040.0,2039.7,32.0]
[1617791588362,2.0687,2040.1,2039.7,38.07]
[1617791589280,2.0687,2040.1,2040.0,2.90695]
[1617791589470,2.0687,2040.1,2040.0,34.90695]
[1617791589665,2.0687,2040.1,2040.0,116.41465]
[1617791591668,0.0001,2040.1,2040.0,116.41465]
[1617791591967,56.743,2041.8,2040.0,116.41465]
[1617791593369,56.743,2041.8,2041.2,2.90695]
[1617791593669,56.743,2041.8,2040.0,113.5077]
[1617791593970,59.6463,2041.8,2041.3,5.97]
[1617791594172,59.6463,2041.8,2040.2,30.0]
[1617791594369,59.6463,2041.8,2041.4,6.17]
[1617791594870,59.6463,2041.8,2040.8,2.8401]
[1617791595071,59.6463,2041.8,2041.5,5.2]
[1617791595072,56.743,2041.8,2041.5,5.2]
[1617791595273,56.743,2041.8,2041.3,2.90695]
[1617791595671,1.0,2042.0,2041.6,6.15]
[1617791595871,70.0501,2042.0,2041.4,6.1]
[1617791596206,70.0501,2042.0,2041.7,5.99]
[1617791596610,70.0501,2042.0,2041.4,5.94]
[1617791596790,70.0501,2042.0,2041.8,5.87]
[1617791597294,70.0501,2042.0,2041.4,5.97]
[1617791597471,70.0501,2042.0,2041.9,6.02]
[1617791597678,70.0501,2042.0,2041.8,3.0581]
[1617791597930,70.0501,2042.0,2041.4,6.02]
[1617791598122,70.0501,2042.0,2040.9,30.0]
[1617791598682,70.0501,2042.0,2041.0,6.14]
[1617791599575,70.0501,2042.0,2041.2,2.90695]
[1617791599888,70.0501,2042.0,2041.3,6.11]
[1617791600685,1.0,2042.0,2041.3,6.11]
[1617791601079,59.7597,2041.4,2041.3,6.11]
[1617791601478,62.66665,2041.4,2041.3,6.11]
[1617791601980,65.39145,2041.4,2040.3,6.05]
[1617791602280,55.5342,2040.7,2040.3,6.05]
[1617791602479,58.243,2040.7,2040.3,6.05]
[1617791602882,58.243,2040.7,2040.0,6.1]
[1617791603382,2.90695,2040.5,2040.4,5.94]
[1617791603581,2.90695,2040.5,2040.1,6.15]
[1617791603781,2.90695,2040.5,2040.4,6.11]
[1617791604285,2.90695,2040.5,2040.1,5.95]
[1617791604482,2.90695,2040.5,2040.4,6.02]
[1617791604683,2.90695,2040.5,2040.1,5.9]
[1617791604883,2.90695,2040.5,2040.2,30.0]
[1617791605083,2.90695,2040.5,2040.4,6.13]
[1617791605385,2.90695,2040.5,2040.4,2.90695]
[1617791605583,55.5342,2040.7,2040.4,9.05695]
[1617791607497,2.90695,2040.7,2040.4,9.05695]
[1617791607697,64.1598,2041.8,2040.4,39.05695]
[1617791608299,64.1598,2041.8,2040.4,41.05695]
[1617791609497,64.1598,2041.8,2041.3,2.90695]
[1617791609798,64.1598,2041.8,2040.4,38.15]
[1617791610002,66.1696,2041.8,2041.4,6.08]
[1617791610202,66.1696,2041.8,2040.4,30.0]
[1617791610606,66.1696,2041.8,2040.3,30.0]
[1617791610800,68.1696,2041.8,2040.3,30.0]
[1617791611001,68.1696,2041.8,2040.5,5.95]
[1617791611204,68.1696,2041.8,2040.3,36.13]
[1617791611403,68.1696,2041.8,2040.4,5.87]
[1617791611608,68.1696,2041.8,2040.6,6.16]
[1617791611808,68.1696,2041.8,2040.3,30.0]
[1617791612004,68.1696,2041.8,2040.4,5.91]
[1617791612205,68.1696,2041.8,2040.6,5.94]
[1617791612408,66.1696,2041.8,2040.3,30.0]
[1617791612606,66.1696,2041.8,2040.4,6.14]
[1617791612808,66.1696,2041.8,2040.7,6.03]
[1617791613207,66.1696,2041.8,2040.3,30.0]
[1617791613208,66.1696,2041.8,2040.5,6.04]
[1617791613407,66.1696,2041.8,2040.8,5.89]
[1617791613610,2.90695,2040.9,2040.8,5.89]
[1617791613811,2.90695,2040.9,2040.6,5.19]
[1617791614110,2.90695,2040.9,2040.5,32.90695]
[1617791614111,2.90695,2040.9,2040.8,5.87]
[1617791614315,2.90695,2040.9,2040.5,32.90695]
[1617791614509,58.5194,2040.6,2040.5,2.90695]
[1617791614910,61.2773,2040.6,2040.5,8.96695]
[1617791615615,64.18425,2040.6,2040.5,8.96695]
[1617791615812,61.42635,2040.6,2040.5,8.96695]
[1617791616550,58.5194,2040.6,2040.5,8.96695]
[1617791620016,58.5194,2040.6,2040.5,38.96695]
[1617791620218,1.999,2042.4,2040.5,41.67775]
[1617791620418,68.357,2042.2,2040.7,73.8832]
[1617791620619,68.357,2042.2,2040.7,103.8832]
[1617791620823,68.357,2042.2,2040.8,6.06]
[1617791621053,68.357,2042.2,2040.8,36.06]
[1617791621226,68.357,2042.2,2040.8,38.06]
[1617791621637,68.357,2042.2,2041.2,2.90695]
[1617791621822,68.357,2042.2,2041.2,5.44865]
[1617791622120,68.357,2042.2,2041.3,6.11]
[1617791623531,2.90695,2041.4,2041.3,6.11]
[1617791624527,68.357,2042.2,2041.3,6.11]
[1617791624822,68.357,2042.2,2041.3,71.3579]
[1617791625525,68.357,2042.2,2041.3,73.5506]
[1617791625824,68.357,2042.2,2041.8,2.90695]
[1617791626024,68.357,2042.2,2041.8,5.09565]
[1617791626223,68.357,2042.2,2041.9,6.11]
[1617791627628,3.90695,2042.0,2041.9,6.11]
[1617791634037,3.90695,2042.0,2041.4,6.14]
[1617791634333,3.90695,2042.0,2041.3,68.15485]
[1617791634334,3.90695,2042.0,2041.9,6.14]
[1617791634733,3.90695,2042.0,2041.3,68.15485]
[1617791635535,3.90695,2042.0,2041.4,5.91]
[1617791635738,2.90695,2041.5,2041.0,2.90695]
[1617791635937,75.29925,2041.5,2041.0,2.90695]
[1617791636440,75.29925,2041.5,2041.1,6.12]
[1617791637443,75.29925,2041.5,2041.1,9.1073]
[1617791637759,75.29925,2041.5,2041.4,2.90695]
[1617791638148,75.29925,2041.5,2041.4,8.84695]
[1617791641341,125.29925,2041.5,2041.4,8.84695]
[1617791643742,125.29925,2041.5,2041.4,5.94]
[1617791644142,125.29925,2041.5,2041.2,6.1]
[1617791644543,125.29925,2041.5,2041.4,6.06]
[1617791644746,125.29925,2041.5,2041.2,6.07]
[1617791645145,125.29925,2041.5,2041.4,5.9]
[1617791645458,125.29925,2041.5,2041.3,5.87]
[1617791645644,125.29925,2041.5,2041.4,5.17]
[1617791646046,125.29925,2041.5,2040.8,2.90695]
[1617791646247,125.29925,2041.5,2041.4,5.26]
[1617791646648,125.29925,2041.5,2040.8,2.90695]
[1617791646848,125.29925,2041.5,2041.4,6.11]
[1617791647348,125.29925,2041.5,2041.1,5.9]
[1617791647549,125.29925,2041.5,2041.4,6.13]
[1617791647849,125.29925,2041.5,2040.9,6.03]
[1617791648149,125.29925,2041.5,2041.4,5.9]
[1617791648550,125.29925,2041.5,2040.9,6.0]
[1617791648751,125.29925,2041.5,2041.4,5.9]
[1617791649051,125.29925,2041.5,2040.9,6.1]
[1617791649452,54.80175,2041.5,2038.7,26.56170937]
[1617791649655,74.2447,2040.9,2040.1,73.8767]
[1617791649861,76.976,2040.9,2040.5,5.93]
[1617791650261,76.976,2040.9,2040.3,5.62]
[1617791650476,76.976,2040.9,2040.6,5.51]
[1617791650674,2.7313,2040.9,2040.6,5.51]
[1617791650867,51.8948,2041.5,2040.8,73.7336]
[1617791650868,76.4915,2041.4,2040.8,73.7336]
[1617791651163,76.4915,2041.4,2040.8,75.9577]
[1617791651378,76.4915,2041.4,2040.9,5.9]
[1617791651866,2.90695,2041.0,2040.9,5.9]
[1617791653865,2.90695,2041.0,2040.9,8.80695]
[1617791654568,50.0,2041.5,2040.9,8.80695]
[1617791654867,50.0,2041.5,2041.0,89.3053]
[1617791655368,50.0,2041.5,2041.1,6.06]
[1617791655672,80.9573,2041.1,2040.9,2.90695]
[1617791655884,80.9573,2041.1,2040.1,58.179]
[1617791655885,2.90695,2041.0,2040.6,2.90695]
[1617791656095,5.08715,2041.0,2040.6,2.90695]
[1617791656566,5.08715,2041.0,2040.7,5.98]
[1617791657472,5.08715,2041.0,2040.2,5.91]
[1617791657672,5.08715,2041.0,2040.8,5.89]
[1617791658073,5.08715,2041.0,2040.3,2.90695]
[1617791658282,2.90695,2041.0,2040.9,6.0]
[1617791658686,2.90695,2041.0,2040.9,2.032]
[1617791659013,2.90695,2041.0,2040.9,8.012]
[1617791659873,2.90695,2041.0,2040.9,10.91895]
[1617791660300,2.90695,2041.0,2040.9,8.012]
[1617791661174,2.90695,2041.0,2040.9,5.98]
[1617791668280,3.87305,2041.0,2040.9,5.98]
[1617791668578,2.90695,2041.0,2040.9,5.98]
[1617791669178,2.90695,2041.0,2040.8,6.07]
[1617791669378,75.1614,2040.9,2040.8,6.07]
[1617791669579,78.1968,2040.9,2040.7,2.90695]
[1617791669877,78.1968,2040.9,2040.8,5.91]
[1617791673180,78.1968,2040.9,2040.4,6.16]
[1617791674181,2.90695,2040.5,2040.4,6.16]
[1617791674381,75.12765,2040.5,2040.4,6.16]
[1617791674881,75.12765,2040.5,2040.3,6.08]
[1617791675181,75.12765,2040.5,2040.4,6.11]
[1617791675481,75.12765,2040.5,2040.3,5.95]
[1617791675781,75.12765,2040.5,2040.4,6.08]
[1617791676081,75.12765,2040.5,2040.3,6.03]
[1617791676481,75.12765,2040.5,2040.4,5.92]
[1617791676680,75.12765,2040.5,2040.3,6.13]
[1617791677180,75.12765,2040.5,2040.4,5.95]
[1617791677383,75.12765,2040.5,2040.3,5.9]
[1617791677682,75.12765,2040.5,2040.4,6.01]
[1617791677881,75.12765,2040.5,2040.3,6.15]
[1617791679708,2.90695,2040.5,2040.3,6.15]
[1617791680129,2.90695,2040.5,2040.3,36.15]
[1617791680387,67.7337,2041.2,2040.9,2.90695]
[1617791680585,50.0,2041.5,2040.9,2.90695]
[1617791680786,50.0,2041.5,2041.0,6.03]
[1617791680986,131.6452,2041.5,2041.0,76.539]
[1617791682388,2.90695,2041.1,2041.0,76.539]
[1617791682887,2.90695,2041.1,2041.0,6.03]
[1617791683295,50.0,2041.5,2041.0,36.03]
[1617791683488,50.0,2041.5,2041.1,61.4264]
[1617791683793,50.0,2041.5,2041.1,91.4264]
[1617791684088,50.0,2041.5,2041.2,36.04]
[1617791684390,50.0,2041.5,2041.4,2.90695]
[1617791684588,50.0,2041.5,2041.4,5.15935]
[1617791684788,50.0,2041.5,2041.4,11.25935]
[1617791690096,50.0,2041.5,2041.4,41.25935]
[1617791690594,50.0,2041.5,2041.4,11.25935]
[1617791690808,50.0,2041.5,2041.4,9.00695]
[1617791690996,53.0742,2041.5,2040.5,2.0]
[1617791691201,53.0742,2041.5,2039.6,13.8398]
[1617791691202,79.0948,2041.4,2040.7,70.8128]
[1617791691705,79.0948,2041.4,2040.8,6.15]
[1617791691896,53.0742,2041.5,2040.8,6.15]
[1617791692411,2.90695,2040.9,2040.8,6.15]
[1617791692599,5.47935,2040.9,2040.8,6.15]
[1617791693799,5.47935,2040.9,2040.2,5.96]
[1617791694000,5.47935,2040.9,2040.3,30.0]
[1617791694001,80.6889,2040.8,2040.3,30.0]
[1617791694200,80.6889,2040.8,2040.3,33.0052]
[1617791694400,80.6889,2040.8,2040.7,2.90695]
[1617791694803,80.6889,2040.8,2040.7,9.05695]
[1617791696706,2.90695,2041.1,2040.7,9.05695]
[1617791696905,2.90695,2041.1,2040.7,6.15]
[1617791697206,2.90695,2041.1,2040.2,5.94]
[1617791697405,5.52315,2041.1,2040.2,5.94]
[1617791697607,65.8624,2040.7,2040.2,5.94]
[1617791698007,65.8624,2040.7,2040.0,5.99]
[1617791698206,65.8624,2040.7,2039.8,95.9227]
[1617791698207,65.8624,2040.7,2040.3,6.13]
[1617791698707,65.8624,2040.7,2040.1,6.16]
[1617791698911,65.8624,2040.7,2040.4,6.12]
[1617791699237,65.8624,2040.7,2040.1,6.1]
[1617791700411,2.90695,2040.2,2040.1,6.1]
[1617791700616,5.21025,2040.2,2040.1,6.1]
[1617791702713,2.90695,2040.2,2040.1,6.1]
[1617791703414,62.6218,2040.1,2038.9,111.2467]
[1617791703613,62.6218,2039.3,2038.9,30.0]
[1617791703813,64.5039,2039.3,2038.9,30.0]
[1617791704214,64.5039,2039.3,2039.0,5.88]
[1617791704414,2.90695,2039.1,2039.0,5.88]
[1617791708315,2.90695,2039.1,2038.0,63.6008]
[1617791708547,1.8821,2039.3,2038.2,2.90695]
[1617791708919,32.01435834,2039.8,2038.2,2.90695]
[1617791709217,80.9056,2038.5,2037.4,2.571]
[1617791709420,82.7804,2038.5,2037.3,30.0]
[1617791709621,82.7804,2038.5,2038.3,6.07]
[1617791709816,82.7804,2038.5,2037.5,5.99]
[1617791710120,82.7804,2038.5,2037.4,4.17]
[1617791710315,82.7804,2038.5,2037.3,30.0]
[1617791710517,82.7804,2038.5,2037.8,2.90695]
[1617791710916,82.7804,2038.5,2037.9,2.84]
[1617791712320,82.7804,2038.5,2037.8,2.90695]
[1617791712718,2.90695,2037.9,2037.8,2.90695]
[1617791712919,0.01436228,2039.4,2037.8,2.90695]
[1617791713235,71.93496228,2039.4,2038.4,81.7617]
[1617791713433,71.93496228,2039.4,2038.4,84.5972]
[1617791713627,71.9206,2039.4,2038.5,6.04]
[1617791714738,2.90695,2038.6,2038.5,8.94695]
[1617791714921,0.0143657,2039.6,2038.5,8.94695]
[1617791715122,0.02873141,2039.7,2038.5,8.94695]
[1617791715123,0.01436914,2039.7,2038.5,8.94695]
[1617791715322,56.8781,2039.0,2038.5,8.94695]
[1617791716022,56.8781,2039.0,2038.5,6.04]
[1617791716425,32.6224,2039.7,2038.5,6.04]
[1617791716624,56.0883,2038.6,2038.5,6.04]
[1617791716827,58.99525,2038.6,2038.5,6.04]
[1617791719631,2.90695,2038.6,2038.5,6.04]
[1617791719831,66.6676,2038.5,2038.0,2.90695]
[1617791720233,66.6676,2038.5,2036.8,32.0]
[1617791720641,2.0,2038.4,2036.8,32.0]
[1617791720838,2.0,2038.4,2037.4,2.90695]
[1617791721335,2.0,2038.4,2037.5,5.98]
[1617791722039,2.1599,2038.6,2037.5,5.98]
[1617791722236,57.3643,2038.6,2037.5,8.9544]
[1617791722837,57.3643,2038.6,2037.8,2.90695]
[1617791723237,2.1599,2038.6,2037.9,6.14]
[1617791724342,67.4911,2038.0,2037.9,6.14]
[1617791724841,70.39805,2038.0,2037.9,6.14]
[1617791725041,70.39805,2038.0,2037.7,2.90695]
[1617791725241,70.39805,2038.0,2037.8,6.12]
[1617791725441,70.39805,2038.0,2037.9,6.03]
[1617791725741,70.39805,2038.0,2037.7,2.90695]
[1617791725943,70.39805,2038.0,2037.9,6.18]
[1617791726442,70.39805,2038.0,2037.7,2.90695]
[1617791726659,70.39805,2038.0,2037.9,6.0]
[1617791726844,70.39805,2038.0,2037.7,2.90695]
[1617791727244,70.39805,2038.0,2037.9,6.07]
[1617791727559,70.39805,2038.0,2037.7,2.90695]
[1617791728044,70.39805,2038.0,2037.9,6.02]
[1617791728246,70.39805,2038.0,2037.8,6.04]
[1617791728446,70.39805,2038.0,2037.9,6.02]
[1617791728844,70.39805,2038.0,2037.4,2.90695]
[1617791729044,70.39805,2038.0,2037.9,5.99]
[1617791729457,70.39805,2038.0,2037.5,6.04]
[1617791729651,70.39805,2038.0,2037.4,2.90695]
[1617791729856,2.90695,2038.0,2037.4,2.90695]
[1617791730252,2.90695,2038.0,2037.5,5.93]
[1617791730850,2.90695,2037.6,2037.5,5.93]
[1617791731051,5.38805,2037.6,2037.5,5.93]
[1617791731780,2.4811,2037.6,2037.5,62.1004]
[1617791731956,2.4811,2037.6,2037.5,92.1004]
[1617791732157,66.1253,2038.2,2037.5,92.1004]
[1617791732356,66.1253,2038.2,2037.5,94.8413]
[1617791732556,66.1253,2038.2,2037.5,64.8413]
[1617791732957,2.90695,2037.6,2037.5,64.8413]
[1617791733456,2.90695,2037.6,2037.5,62.1004]
[1617791736759,2.90695,2037.6,2037.5,5.93]
[1617791741062,2.0918,2038.4,2037.5,5.93]
[1617791741265,61.2355,2038.5,2037.6,78.6772]
[1617791741563,61.2355,2038.5,2037.6,81.537]
[1617791741763,61.2355,2038.5,2037.7,5.92]
[1617791741963,30.0,2039.7,2037.7,5.92]
[1617791742183,83.1441,2039.6,2038.2,60.8172]
[1617791742464,83.1441,2039.6,2038.2,62.9865]
[1617791742665,83.1441,2039.6,2038.3,5.97]
[1617791742965,83.1441,2039.6,2038.4,2.90695]
[1617791743372,83.1441,2039.6,2038.5,5.89]
[1617791743573,81.1441,2039.6,2038.5,5.89]
[1617791743868,13.57206741,2040.9,2038.6,30.0]
[1617791744075,79.6513,2040.6,2039.2,81.252]
[1617791744270,79.6513,2040.6,2039.2,84.0419]
[1617791744492,79.6513,2040.6,2039.3,6.08]
[1617791744868,2.90695,2039.4,2039.3,6.08]
[1617791746100,2.90695,2039.4,2039.2,2.7899]
[1617791746304,2.90695,2039.4,2038.6,68.4878]